fUSD/lending_fUSD_20251122
["ID","MTS","AMOUNT","RATE_DAILY","PERIOD"]
[394638537,1763806248536,-280.5422,0.00016099,2]
[394638538,1763806248545,-168.0,0.00016107,2]
[394638539,1763806248553,-166.66,0.00016171,2]
[394638540,1763806248562,-168.0,0.00016174,2]
[394638541,1763806248571,-168.0,0.00016175,2]
[394638542,1763806248580,-168.0,0.00016186,2]
[394638543,1763806248590,-168.0,0.00016196,2]
[394638544,1763806248599,-758.47625791,0.00016199,2]
[394638545,1763806248609,-20000.0,0.000162,2]
[394638546,1763806248618,-5000.00908261,0.000162,5]
[394638547,1763806248628,-168.0,0.00016211,2]
[394638548,1763806248637,-168.0,0.0001625,2]
[394638549,1763806248646,-809.48632185,0.00016277,2]
[394638550,1763806248655,-168.0,0.00016289,2]
[394638551,1763806248665,-5000.0,0.000163,2]
[394638552,1763806248674,-1724.0,0.000163,2]
[394638553,1763806248683,-770.03018388,0.00016338,2]
[394638554,1763806248692,-554.24080956,0.00016338,2]
[394638555,1763806248701,-1000.0,0.00016338,2]
[394638556,1763806248711,-758.47625791,0.00016339,2]
[394638557,1763806248724,-3000.0,0.000164,2]
[394638558,1763806248734,-1265.0,0.000164,2]
[394638559,1763806248743,-770.0301838,0.000164,2]
[394638560,1763806248752,-1096.0,0.00016418,2]
[394638561,1763806248763,-1175.41,0.00016428,2]
[394638562,1763806248772,-500.0,0.00016437,2]
[394638563,1763806248781,-478.18410856,0.00016437,2]
[394638564,1763806248790,-500.0,0.00016438,2]
[394638565,1763806248800,-500.0,0.00016438,2]
[394638566,1763806248809,-500.0,0.00016438,2]
[394638567,1763806248818,-500.0,0.00016438,2]
[394638568,1763806248828,-500.0,0.00016438,2]
[394638569,1763806248837,-500.0,0.00016438,2]
[394638570,1763806248847,-500.0,0.00016438,2]
[394638571,1763806248856,-500.0,0.00016438,2]
[394638572,1763806248865,-500.0,0.00016438,2]
[394638573,1763806248875,-500.0,0.00016438,2]
[394638574,1763806248885,-500.0,0.00016438,2]
[394638575,1763806248896,-500.0,0.00016438,2]
[394638576,1763806248905,-500.0,0.00016438,2]
[394638577,1763806248914,-500.0,0.00016438,2]
[394638578,1763806248922,-867.5,0.00016438,2]
[394638579,1763806248932,-500.0,0.00016438,2]
[394638580,1763806248941,-500.0,0.00016438,2]
[394638581,1763806248950,-500.0,0.00016438,2]
[394638582,1763806248959,-510.76465813,0.00016438,2]
[394638583,1763806248968,-500.0,0.00016438,2]
[394638584,1763806248977,-500.0,0.00016438,2]
[394638585,1763806248986,-500.0,0.00016438,2]
[394638586,1763806248995,-643.22,0.00016438,2]
[394638587,1763806249004,-615.85132972,0.00016438,2]
[394638588,1763806249013,-843.09,0.00016438,2]
[394638589,1763806249022,-664.19,0.00016438,2]
[394638590,1763806249032,-579.49,0.00016438,2]
[394638591,1763806249040,-944.02,0.00016438,2]
[394638592,1763806249049,-500.0,0.00016438,2]
[394638593,1763806249059,-500.0,0.00016438,2]
[394638594,1763806249068,-500.0,0.00016438,2]
[394638595,1763806249078,-781.7,0.00016438,2]
[394638596,1763806249087,-500.0,0.00016438,2]
[394638597,1763806249097,-638.38580928,0.00016438,2]
[394638598,1763806249108,-500.0,0.00016438,2]
[394638599,1763806249118,-500.0,0.00016438,2]
[394638600,1763806249128,-500.0,0.00016438,2]
[394638601,1763806249138,-754.3,0.00016438,2]
[394638602,1763806249148,-500.0,0.00016438,2]
[394638603,1763806249157,-500.0,0.00016438,2]
[394638604,1763806249167,-500.0,0.00016438,2]
[394638605,1763806249177,-826.89,0.00016438,2]
[394638606,1763806249186,-500.0,0.00016438,2]
[394638607,1763806249196,-500.0,0.00016438,2]
[394638608,1763806249205,-760.07,0.00016438,2]
[394638609,1763806249214,-508.18457303,0.00016438,2]
[394638610,1763806249225,-500.0,0.00016438,2]
[394638611,1763806249236,-660.25,0.00016438,2]
[394638612,1763806249245,-500.0,0.00016438,2]
[394638613,1763806249254,-500.0,0.00016438,2]
[394638614,1763806249263,-500.0,0.00016438,2]
[394638615,1763806249272,-608.55249744,0.00016438,2]
[394638616,1763806249281,-500.0,0.00016438,2]
[394638617,1763806249290,-620.59,0.00016438,2]
[394638618,1763806249300,-718.76,0.00016438,2]
[394638619,1763806249310,-633.7859562,0.00016438,2]
[394638620,1763806249319,-589.29,0.00016438,2]
[394638621,1763806249328,-604.47979039,0.00016438,2]
[394638622,1763806249338,-500.0,0.00016438,2]
[394638623,1763806249347,-500.0,0.00016438,2]
[394638624,1763806249358,-523.48,0.00016438,2]
[394638625,1763806249368,-500.0,0.00016438,2]
[394638626,1763806249377,-500.0,0.00016438,2]
[394638627,1763806249386,-500.0,0.00016438,2]
[394638628,1763806249395,-500.0,0.00016438,2]
[394638629,1763806249404,-500.0,0.00016438,2]
[394638630,1763806249413,-1151.27,0.00016438,2]
[394638631,1763806249422,-641.9854373,0.00016438,2]
[394638632,1763806249431,-539.63,0.00016438,2]
[394638633,1763806249440,-500.0,0.00016438,2]
[394638634,1763806249449,-640.17426098,0.00016438,2]
[394638635,1763806249458,-500.0,0.00016438,2]
[394638636,1763806249467,-943.25,0.00016438,2]
[394638637,1763806249476,-500.0,0.00016438,2]
[394638638,1763806249485,-532.89,0.00016438,2]
[394638639,1763806249493,-500.0,0.00016438,2]
[394638640,1763806249502,-500.0,0.00016438,2]
[394638641,1763806249511,-717.92,0.00016438,2]
[394638642,1763806249520,-500.0,0.00016438,2]
[394638643,1763806249529,-500.0,0.00016438,2]
[394638644,1763806249539,-500.0,0.00016438,2]
[394638645,1763806249548,-500.0,0.00016438,2]
[394638646,1763806249558,-791.9,0.00016438,2]
[394638647,1763806249567,-500.0,0.00016438,2]
[394638648,1763806249576,-671.16,0.00016438,2]
[394638649,1763806249586,-248.46254652,0.00016438,2]
[394638650,1763806249595,-513.69,0.00016438,2]
[394638651,1763806249606,-718.46,0.00016438,2]
[394638652,1763806249615,-903.01,0.00016438,2]
[394638653,1763806249625,-500.0,0.00016438,2]
[394638654,1763806249634,-500.0,0.00016438,2]
[394638655,1763806249643,-500.0,0.00016438,2]
[394638656,1763806249652,-500.0,0.00016438,2]
[394638657,1763806249662,-503.28152362,0.00016438,2]
[394638658,1763806249673,-619.27,0.00016438,2]
[394638659,1763806249682,-217.48144028,0.00016438,2]
[394638660,1763806249692,-633.07,0.00016438,2]
[394638661,1763806249701,-512.4,0.00016438,2]
[394638662,1763806249711,-734.0,0.00016438,2]
[394638663,1763806249723,-686.05,0.00016438,2]
[394638664,1763806249733,-689.73,0.00016438,2]
[394638665,1763806249742,-500.0,0.00016438,2]
[394638666,1763806249751,-500.0,0.00016438,2]
[394638667,1763806249762,-515.09,0.00016438,2]
[394638668,1763806249773,-909.79,0.00016438,2]
[394638669,1763806249783,-534.13,0.00016438,2]
[394638670,1763806249793,-573.37242657,0.00016438,2]
[394638671,1763806249804,-500.0,0.00016438,2]
[394638672,1763806249813,-987.88,0.00016438,2]
[394638673,1763806249823,-500.0,0.00016438,2]
[394638674,1763806249832,-500.0,0.00016438,2]
[394638675,1763806249841,-510.01979354,0.00016438,2]
[394638676,1763806249850,-500.0,0.00016438,2]
[394638677,1763806249859,-500.0,0.00016438,2]
[394638678,1763806249868,-1118.33,0.00016438,2]
[394638679,1763806249878,-593.96,0.00016438,2]
[394638680,1763806249889,-532.39,0.00016438,2]
[394638681,1763806249899,-524.20354712,0.00016438,2]
[394638682,1763806249908,-500.0,0.00016438,2]
[394638683,1763806249918,-500.0,0.00016438,2]
[394638684,1763806249927,-500.0,0.00016438,2]
[394638685,1763806249936,-500.0,0.00016438,2]
[394638686,1763806249945,-500.0,0.00016438,2]
[394638687,1763806249954,-500.0,0.00016438,2]
[394638688,1763806249962,-500.0,0.00016438,2]
[394638689,1763806249971,-479.73435657,0.00016438,2]
[394638690,1763806249981,-500.0,0.00016438,2]
[394638691,1763806249990,-500.0,0.00016438,2]
[394638692,1763806249999,-500.0,0.00016438,2]
[394638693,1763806250008,-500.0,0.00016438,2]
[394638694,1763806250017,-500.0,0.00016438,2]
[394638695,1763806250026,-500.0,0.00016438,2]
[394638696,1763806250035,-500.0,0.00016438,2]
[394638697,1763806250044,-500.0,0.00016438,2]
[394638698,1763806250053,-745.16,0.00016438,2]
[394638699,1763806250062,-643.4,0.00016438,2]
[394638700,1763806250071,-760.48,0.00016438,2]
[394638701,1763806250080,-500.0,0.00016438,2]
[394638702,1763806250089,-500.0,0.00016438,2]
[394638703,1763806250099,-500.0,0.00016438,2]
[394638704,1763806250109,-500.0,0.00016438,2]
[394638705,1763806250118,-660.26,0.00016438,2]
[394638706,1763806250127,-500.0,0.00016438,2]
[394638707,1763806250136,-500.0,0.00016438,2]
[394638708,1763806250146,-500.0,0.00016438,2]
[394638709,1763806250155,-500.0,0.00016438,2]
[394638710,1763806250164,-500.0,0.00016438,2]
[394638711,1763806250174,-643.35,0.00016438,2]
[394638712,1763806250182,-536.96,0.00016438,2]
[394638713,1763806250191,-500.0,0.00016438,2]
[394638714,1763806250200,-561.03,0.00016438,2]
[394638715,1763806250209,-667.06,0.00016438,2]
[394638716,1763806250218,-333.92574308,0.00016438,2]
[394638717,1763806250227,-500.0,0.00016438,2]
[394638718,1763806250236,-500.0,0.00016438,2]
[394638719,1763806250245,-500.0,0.00016438,2]
[394638720,1763806250255,-500.0,0.00016438,2]
[394638721,1763806250265,-840.36,0.00016438,2]
[394638722,1763806250275,-500.0,0.00016438,2]
[394638723,1763806250286,-500.0,0.00016438,2]
[394638724,1763806250296,-588.85,0.00016438,2]
[394638725,1763806250306,-164.01378799,0.00016438,2]
[394638726,1763806250315,-527.44,0.00016438,2]
[394638727,1763806250324,-500.0,0.00016438,2]
[394638728,1763806250334,-500.0,0.00016438,2]
[394638729,1763806250343,-500.0,0.00016438,2]
[394638730,1763806250353,-1117.89,0.00016438,2]
[394638731,1763806250363,-500.0,0.00016438,2]
[394638732,1763806250372,-316.3654966,0.00016438,2]
[394638733,1763806250381,-390.01509824,0.00016438,2]
[394638734,1763806250390,-761.79,0.00016438,2]
[394638735,1763806250399,-500.0,0.00016438,2]
[394638736,1763806250408,-620.55,0.00016438,2]
[394638737,1763806250417,-500.0,0.00016438,2]
[394638738,1763806250425,-593.36,0.00016438,2]
[394638739,1763806250434,-402.45775921,0.00016438,2]
[394638740,1763806250443,-500.0,0.00016438,2]
[394638741,1763806250452,-676.83,0.00016438,2]
[394638742,1763806250462,-500.0,0.00016438,2]
[394638743,1763806250470,-900.44,0.00016438,2]
[394638744,1763806250479,-1015.0,0.00016438,2]
[394638745,1763806250488,-588.06,0.00016438,2]
[394638746,1763806250497,-500.0,0.00016438,2]
[394638747,1763806250507,-511.04,0.00016438,2]
[394638748,1763806250516,-500.0,0.00016438,2]
[394638749,1763806250525,-1144.77,0.00016438,2]
[394638750,1763806250534,-787.96,0.00016438,2]
[394638751,1763806250544,-185.78990485,0.00016438,2]
[394638752,1763806250553,-500.0,0.00016438,2]
[394638753,1763806250562,-500.0,0.00016438,2]
[394638754,1763806250571,-500.0,0.00016438,2]
[394638755,1763806250580,-500.0,0.00016438,2]
[394638756,1763806250589,-500.0,0.00016438,2]
[394638757,1763806250599,-500.0,0.00016438,2]
[394638758,1763806250609,-865.95,0.00016438,2]
[394638759,1763806250618,-592.3,0.00016438,2]
[394638760,1763806250628,-500.0,0.00016438,2]
[394638761,1763806250637,-540.6,0.00016438,2]
[394638762,1763806250646,-500.0,0.00016438,2]
[394638763,1763806250655,-463.01953351,0.00016438,2]
[394638764,1763806250664,-790.49,0.00016438,2]
[394638765,1763806250673,-410.46323083,0.00016438,2]
[394638766,1763806250683,-500.0,0.00016438,2]
[394638767,1763806250692,-580.1,0.00016438,2]
[394638768,1763806250701,-500.0,0.00016438,2]
[394638769,1763806250710,-500.0,0.00016438,2]
[394638770,1763806250720,-500.0,0.00016438,2]
[394638771,1763806250733,-500.0,0.00016438,2]
[394638772,1763806250741,-766.2,0.00016438,2]
[394638773,1763806250751,-557.29,0.00016438,2]
[394638774,1763806250760,-500.0,0.00016438,2]
[394638775,1763806250771,-500.0,0.00016438,2]
[394638776,1763806250780,-411.57604973,0.00016438,2]
[394638777,1763806250790,-500.0,0.00016438,2]
[394638778,1763806250800,-637.13,0.00016438,2]
[394638779,1763806250810,-500.0,0.00016438,2]
[394638780,1763806250819,-1511.77,0.00016438,2]
[394638781,1763806250828,-500.0,0.00016438,2]
[394638782,1763806250837,-699.88,0.00016438,2]
[394638783,1763806250847,-500.0,0.00016438,2]
[394638784,1763806250857,-705.23,0.00016438,2]
[394638785,1763806250866,-500.0,0.00016438,2]
[394638786,1763806250875,-500.0,0.00016438,2]
[394638787,1763806250884,-500.0,0.00016438,2]
[394638788,1763806250894,-500.0,0.00016438,2]
[394638789,1763806250903,-500.0,0.00016438,2]
[394638790,1763806250912,-768.25,0.00016438,2]
[394638791,1763806250923,-500.0,0.00016438,2]
[394638792,1763806250933,-561.04,0.00016438,2]
[394638793,1763806250943,-500.0,0.00016438,2]
[394638794,1763806250952,-500.0,0.00016438,2]
[394638795,1763806250961,-500.0,0.00016438,2]
[394638796,1763806250969,-500.0,0.00016438,2]
[394638797,1763806250979,-500.0,0.00016438,2]
[394638798,1763806250988,-681.07,0.00016438,2]
[394638799,1763806250998,-500.0,0.00016438,2]
[394638800,1763806251007,-500.0,0.00016438,2]
[394638801,1763806251016,-500.0,0.00016438,2]
[394638802,1763806251026,-500.0,0.00016438,2]
[394638803,1763806251037,-500.0,0.00016438,2]
[394638804,1763806251046,-500.0,0.00016438,2]
[394638805,1763806251055,-889.28,0.00016438,2]
[394638806,1763806251065,-500.0,0.00016438,2]
[394638807,1763806251075,-195.21022348,0.00016438,2]
[394638808,1763806251084,-500.0,0.00016438,2]
[394638809,1763806251093,-500.0,0.00016438,2]
[394638810,1763806251103,-500.0,0.00016438,2]
[394638811,1763806251112,-500.0,0.00016438,2]
[394638812,1763806251122,-500.0,0.00016438,2]
[394638813,1763806251133,-500.0,0.00016438,2]
[394638814,1763806251143,-500.0,0.00016438,2]
[394638815,1763806251152,-500.0,0.00016438,2]
[394638816,1763806251161,-500.0,0.00016438,2]
[394638817,1763806251170,-500.0,0.00016438,2]
[394638818,1763806251180,-500.0,0.00016438,2]
[394638819,1763806251189,-500.0,0.00016438,2]
[394638820,1763806251199,-500.0,0.00016438,2]
[394638821,1763806251208,-500.0,0.00016438,2]
[394638822,1763806251217,-415.8867928,0.00016438,2]
[394638823,1763806251226,-410.77027796,0.00016438,2]
[394638824,1763806251235,-500.0,0.00016438,2]
[394638825,1763806251457,-395.50134359,0.00016438,2]
[394638826,1763806251466,-500.0,0.00016438,2]
[394638827,1763806251476,-500.0,0.00016438,2]
[394638828,1763806251485,-500.0,0.00016438,2]
[394638829,1763806251494,-500.0,0.00016438,2]
[394638830,1763806251504,-500.0,0.00016438,2]
[394638831,1763806251513,-500.0,0.00016438,2]
[394638832,1763806251523,-500.0,0.00016438,2]
[394638833,1763806251532,-910.7,0.00016438,2]
[394638834,1763806251542,-500.0,0.00016438,2]
[394638835,1763806251552,-500.0,0.00016438,2]
[394638836,1763806251561,-581.69,0.00016438,2]
[394638837,1763806251571,-348.24711689,0.00016438,2]
[394638838,1763806251581,-681.0,0.00016438,2]
[394638839,1763806251591,-500.0,0.00016438,2]
[394638840,1763806251600,-500.0,0.00016438,2]
[394638841,1763806251611,-500.0,0.00016438,2]
[394638842,1763806251620,-500.0,0.00016438,2]
[394638843,1763806251630,-561.58,0.00016438,2]
[394638844,1763806251640,-503.41241425,0.00016438,2]
[394638845,1763806251649,-500.0,0.00016438,2]
[394638846,1763806251658,-429.12635329,0.00016438,2]
[394638847,1763806251668,-500.0,0.00016438,2]
[394638848,1763806251677,-500.0,0.00016438,2]
[394638849,1763806251687,-520.44,0.00016438,2]
[394638850,1763806251696,-576.7,0.00016438,2]
[394638851,1763806251705,-500.0,0.00016438,2]
[394638852,1763806251714,-892.07,0.00016438,2]
[394638853,1763806251726,-637.43414314,0.00016438,2]
[394638854,1763806251736,-508.85895819,0.00016438,2]
[394638855,1763806251746,-500.0,0.00016438,2]
[394638856,1763806251755,-500.0,0.00016438,2]
[394638857,1763806251767,-500.0,0.00016438,2]
[394638858,1763806251776,-648.76,0.00016438,2]
[394638859,1763806251786,-195.66526476,0.00016438,2]
[394638860,1763806251797,-540.37,0.00016438,2]
[394638861,1763806251806,-500.0,0.00016438,2]
[394638862,1763806251815,-1478.21,0.00016438,2]
[394638863,1763806251824,-500.0,0.00016438,2]
[394638864,1763806251834,-500.0,0.00016438,2]
[394638865,1763806251843,-500.0,0.00016438,2]
[394638866,1763806251853,-418.55431668,0.00016438,2]
[394638867,1763806251863,-500.0,0.00016438,2]
[394638868,1763806251873,-500.0,0.00016438,2]
[394638869,1763806251882,-680.96,0.00016438,2]
[394638870,1763806251891,-500.0,0.00016438,2]
[394638871,1763806251900,-500.0,0.00016438,2]
[394638872,1763806251909,-500.0,0.00016438,2]
[394638873,1763806251918,-500.0,0.00016438,2]
[394638874,1763806251927,-500.0,0.00016438,2]
[394638875,1763806251936,-500.0,0.00016438,2]
[394638876,1763806251945,-410.58343064,0.00016438,2]
[394638877,1763806251954,-500.0,0.00016438,2]
[394638878,1763806251963,-468.53422449,0.00016438,2]
[394638879,1763806251973,-500.0,0.00016438,2]
[394638880,1763806251981,-411.41724952,0.00016438,2]
[394638881,1763806251991,-500.0,0.00016438,2]
[394638882,1763806251999,-500.0,0.00016438,2]
[394638883,1763806252009,-500.0,0.00016438,2]
[394638884,1763806252020,-623.31538564,0.00016438,2]
[394638885,1763806252029,-539.72140738,0.00016438,2]
[394638886,1763806252039,-685.91,0.00016438,2]
[394638887,1763806252047,-485.0,0.00016438,2]
[394638888,1763806252056,-500.0,0.00016438,2]
[394638889,1763806252065,-500.0,0.00016438,2]
[394638890,1763806252074,-778.77,0.00016438,2]
[394638891,1763806252083,-500.0,0.00016438,2]
[394638892,1763806252092,-500.0,0.00016438,2]
[394638893,1763806252101,-500.0,0.00016438,2]
[394638894,1763806252112,-500.0,0.00016438,2]
[394638895,1763806252121,-500.0,0.00016438,2]
[394638896,1763806252131,-500.0,0.00016438,2]
[394638897,1763806252140,-714.38,0.00016438,2]
[394638898,1763806252149,-500.0,0.00016438,2]
[394638899,1763806252158,-500.0,0.00016438,2]
[394638900,1763806252167,-500.0,0.00016438,2]
[394638901,1763806252176,-500.0,0.00016438,2]
[394638902,1763806252185,-500.0,0.00016438,2]
[394638903,1763806252194,-500.0,0.00016438,2]
[394638904,1763806252204,-409.32200833,0.00016438,2]
[394638905,1763806252213,-500.0,0.00016438,2]
[394638906,1763806252222,-758.68,0.00016438,2]
[394638907,1763806252231,-745.24,0.00016438,2]
[394638908,1763806252241,-758.78,0.00016438,2]
[394638909,1763806252250,-500.0,0.00016438,2]
[394638910,1763806252262,-423.42308414,0.00016438,2]
[394638911,1763806252276,-1003.75,0.00016438,2]
[394638912,1763806252287,-500.0,0.00016438,2]
[394638913,1763806252299,-500.0,0.00016438,2]
[394638914,1763806252308,-500.0,0.00016438,2]
[394638915,1763806252319,-500.0,0.00016438,2]
[394638916,1763806252329,-500.0,0.00016438,2]
[394638917,1763806252339,-500.0,0.00016438,2]
[394638918,1763806252348,-500.0,0.00016438,2]
[394638919,1763806252360,-500.0,0.00016438,2]
[394638920,1763806252369,-314.2595971,0.00016438,2]
[394638921,1763806252379,-500.0,0.00016438,2]
[394638922,1763806252388,-504.47499065,0.00016438,2]
[394638923,1763806252398,-753.49,0.00016438,2]
[394638924,1763806252409,-697.04,0.00016438,2]
[394638925,1763806252418,-595.07,0.00016438,2]
[394638926,1763806252428,-500.0,0.00016438,2]
[394638927,1763806252436,-500.0,0.00016438,2]
[394638928,1763806252448,-500.0,0.00016438,2]
[394638929,1763806252458,-407.18979103,0.00016438,2]
[394638930,1763806252467,-892.51,0.00016438,2]
[394638931,1763806252476,-500.0,0.00016438,2]
[394638932,1763806252485,-439.52726155,0.00016438,2]
[394638933,1763806252494,-507.73,0.00016438,2]
[394638934,1763806252503,-500.0,0.00016438,2]
[394638935,1763806252512,-500.0,0.00016438,2]
[394638936,1763806252521,-500.0,0.00016438,2]
[394638937,1763806252531,-500.0,0.00016438,2]
[394638938,1763806252540,-817.08,0.00016438,2]
[394638939,1763806252548,-500.0,0.00016438,2]
[394638940,1763806252558,-1276.37,0.00016438,2]
[394638941,1763806252567,-500.0,0.00016438,2]
[394638942,1763806252576,-598.13,0.00016438,2]
[394638943,1763806252584,-500.0,0.00016438,2]
[394638944,1763806252593,-500.0,0.00016438,2]
[394638945,1763806252603,-500.0,0.00016438,2]
[394638946,1763806252613,-500.0,0.00016438,2]
[394638947,1763806252622,-500.0,0.00016438,2]
[394638948,1763806252632,-150.0,0.00016438,2]
[394638949,1763806252643,-683.96,0.00016438,2]
[394638950,1763806252652,-150.0,0.00016438,2]
[394638951,1763806252662,-500.0,0.00016438,2]
[394638952,1763806252671,-500.0,0.00016438,2]
[394638953,1763806252680,-150.0,0.00016438,2]
[394638954,1763806252690,-241.02718406,0.00016438,2]
[394638955,1763806252699,-500.0,0.00016438,2]
[394638956,1763806252708,-150.0,0.00016438,2]
[394638957,1763806252718,-724.4,0.00016438,2]
[394638958,1763806252732,-500.0,0.00016438,2]
[394638959,1763806252741,-700.99,0.00016438,2]
[394638960,1763806252750,-150.0,0.00016438,2]
[394638961,1763806252760,-284.53707176,0.00016438,2]
[394638962,1763806252772,-253.32519065,0.00016438,2]
[394638963,1763806252781,-500.0,0.00016438,2]
[394638964,1763806252790,-219.54046152,0.00016438,2]
[394638965,1763806252800,-150.0,0.00016438,2]
[394638966,1763806252809,-506.6,0.00016438,2]
[394638967,1763806252819,-500.0,0.00016438,2]
[394638968,1763806252829,-500.0,0.00016438,2]
[394638969,1763806252839,-830.04,0.00016438,2]
[394638970,1763806252855,-500.0,0.00016438,2]
[394638971,1763806252865,-509.8,0.00016438,2]
[394638972,1763806252874,-500.0,0.00016438,2]
[394638973,1763806252883,-500.0,0.00016438,2]
[394638974,1763806252893,-500.0,0.00016438,2]
[394638975,1763806252904,-645.82,0.00016438,2]
[394638976,1763806252915,-500.0,0.00016438,2]
[394638977,1763806252933,-500.0,0.00016438,2]
[394638978,1763806252942,-500.0,0.00016438,2]
[394638979,1763806252951,-500.0,0.00016438,2]
[394638980,1763806252961,-500.0,0.00016438,2]
[394638981,1763806252969,-500.0,0.00016438,2]
[394638982,1763806252978,-500.0,0.00016438,2]
[394638983,1763806252988,-651.49,0.00016438,2]
[394638984,1763806252996,-500.0,0.00016438,2]
[394638985,1763806253006,-500.0,0.00016438,2]
[394638986,1763806253015,-500.0,0.00016438,2]
[394638987,1763806253024,-680.93,0.00016438,2]
[394638988,1763806253034,-950.5,0.00016438,2]
[394638989,1763806253044,-500.0,0.00016438,2]
[394638990,1763806253054,-768.8,0.00016438,2]
[394638991,1763806253063,-1163.93,0.00016438,2]
[394638992,1763806253072,-938.85,0.00016438,2]
[394638993,1763806253081,-500.0,0.00016438,2]
[394638994,1763806253091,-500.0,0.00016438,2]
[394638995,1763806253100,-626.46984879,0.00016438,2]
[394638996,1763806253109,-816.31,0.00016438,2]
[394638997,1763806253119,-500.0,0.00016438,2]
[394638998,1763806253129,-500.0,0.00016438,2]
[394638999,1763806253139,-500.0,0.00016438,2]
[394639000,1763806253148,-500.0,0.00016438,2]
[394639001,1763806253158,-695.83,0.00016438,2]
[394639002,1763806253167,-479.01249771,0.00016438,2]
[394639003,1763806253177,-500.0,0.00016438,2]
[394639004,1763806253187,-500.0,0.00016438,2]
[394639005,1763806253196,-1025.64,0.00016438,2]
[394639006,1763806253206,-692.67,0.00016438,2]
[394639007,1763806253215,-970.47,0.00016438,2]
[394639008,1763806253225,-500.0,0.00016438,2]
[394639009,1763806253235,-500.0,0.00016438,2]
[394639010,1763806253244,-500.0,0.00016438,2]
[394639011,1763806253254,-500.0,0.00016438,2]
[394639012,1763806253264,-521.7809429,0.00016438,2]
[394639013,1763806253274,-5173.16,0.00016438,2]
[394639014,1763806253283,-500.0,0.00016438,2]
[394639015,1763806253293,-500.0,0.00016438,2]
[394639016,1763806253302,-500.0,0.00016438,2]
[394639017,1763806253311,-500.0,0.00016438,2]
[394639018,1763806253321,-500.0,0.00016438,2]
[394639019,1763806253331,-500.0,0.00016438,2]
[394639020,1763806253340,-500.0,0.00016438,2]
[394639021,1763806253350,-415.2862096,0.00016438,2]
[394639022,1763806253362,-500.0,0.00016438,2]
[394639023,1763806253372,-500.0,0.00016438,2]
[394639024,1763806253382,-500.0,0.00016438,2]
[394639025,1763806253391,-500.0,0.00016438,2]
[394639026,1763806253401,-500.0,0.00016438,2]
[394639027,1763806253410,-500.0,0.00016438,2]
[394639028,1763806253419,-500.0,0.00016438,2]
[394639029,1763806253428,-974.11,0.00016438,2]
[394639030,1763806253438,-500.0,0.00016438,2]
[394639031,1763806253447,-500.0,0.00016438,2]
[394639032,1763806253457,-500.0,0.00016438,2]
[394639033,1763806253466,-500.0,0.00016438,2]
[394639034,1763806253475,-565.35937465,0.00016438,2]
[394639035,1763806253485,-942.8,0.00016438,2]
[394639036,1763806253496,-300.0,0.00016438,2]